[Event "*** Titled Tuesday Blitz"]
[Site "Chess.com"]
[Date "2021.02.09"]
[Round "4"]
[White "Das_Virus_2020"]
[Black "Guzman70"]
[Result "1-0"]
[WhiteElo "2446"]
[BlackElo "2254"]
[TimeControl "180+1"]
[EndTime "10:38:17 PST"]
[Termination "Das_Virus_2020 won by checkmate"]

1. e4 {[%clk 0:03:00.9]} 1... e6 {[%clk 0:02:55]} 2. Qe2 {[%clk 0:03:00.4]} 2...
c5 {[%clk 0:02:46.7]} 3. Nf3 {[%clk 0:02:59.7]} 3... Nc6 {[%clk 0:02:46.2]} 4.
g3 {[%clk 0:02:59.7]} 4... Nf6 {[%clk 0:02:41.5]} 5. Bg2 {[%clk 0:02:59.1]} 5...
d5 {[%clk 0:02:34.6]} 6. e5 {[%clk 0:02:53.2]} 6... Nd7 {[%clk 0:02:28.8]} 7. d3
{[%clk 0:02:53.4]} 7... b5 {[%clk 0:02:25.4]} 8. O-O {[%clk 0:02:49.8]} 8... Be7
{[%clk 0:02:21.9]} 9. h4 {[%clk 0:02:48.9]} 9... h6 {[%clk 0:02:18.9]} 10. h5
{[%clk 0:02:47.3]} 10... Qc7 {[%clk 0:02:11.8]} 11. Bf4 {[%clk 0:02:44.9]} 11...
Nd4 {[%clk 0:02:10.1]} 12. Nxd4 {[%clk 0:02:43.1]} 12... cxd4 {[%clk 0:02:11]}
13. c3 {[%clk 0:02:39]} 13... Bc5 {[%clk 0:02:02.7]} 14. Nd2 {[%clk 0:02:34.4]}
14... a5 {[%clk 0:01:35.3]} 15. Nb3 {[%clk 0:02:25.3]} 15... a4 {[%clk
0:01:27.1]} 16. Nxd4 {[%clk 0:02:22]} 16... Bxd4 {[%clk 0:01:27.1]} 17. cxd4
{[%clk 0:02:22.9]} 17... Qb6 {[%clk 0:01:22.2]} 18. Be3 {[%clk 0:02:22]} 18...
b4 {[%clk 0:01:17.5]} 19. Qg4 {[%clk 0:02:15.2]} 19... Kf8 {[%clk 0:01:08.9]}
20. f4 {[%clk 0:02:11.9]} 20... Kg8 {[%clk 0:00:53.2]} 21. Rad1 {[%clk
0:01:59.5]} 21... a3 {[%clk 0:00:32.5]} 22. b3 {[%clk 0:01:55.2]} 22... Ba6
{[%clk 0:00:22.9]} 23. Bxd5 {[%clk 0:01:49]} 23... exd5 {[%clk 0:00:20.2]} 24.
Qxd7 {[%clk 0:01:48]} 24... Rd8 {[%clk 0:00:15]} 25. Qe7 {[%clk 0:01:43.8]}
25... Qb8 {[%clk 0:00:08.7]} 26. f5 {[%clk 0:01:40.9]} 26... Re8 {[%clk
0:00:08.6]} 27. Qh4 {[%clk 0:01:22.5]} 27... Qc7 {[%clk 0:00:06.9]} 28. f6
{[%clk 0:01:08.7]} 28... gxf6 {[%clk 0:00:04.6]} 29. Qxf6 {[%clk 0:01:06.3]}
29... Qc2 {[%clk 0:00:04.1]} 30. Qxf7# {[%clk 0:01:04.7]} 1-0

[Event "*** Titled Tuesday Blitz"]
[Site "Chess.com"]
[Date "2021.02.09"]
[Round "4"]
[White "CzechmVIII"]
[Black "zurzan"]
[Result "1-0"]
[WhiteElo "2263"]
[BlackElo "1996"]
[TimeControl "180+1"]
[EndTime "10:38:21 PST"]
[Termination "CzechmVIII won by resignation"]

1. e4 {[%clk 0:03:00.9]} 1... d6 {[%clk 0:03:00.9]} 2. d4 {[%clk 0:03:00.2]}
2... Nf6 {[%clk 0:03:01.4]} 3. Nc3 {[%clk 0:03:00.7]} 3... Nbd7 {[%clk
0:03:01.6]} 4. g4 {[%clk 0:03:00.1]} 4... e5 {[%clk 0:03:01.4]} 5. g5 {[%clk
0:02:59.4]} 5... exd4 {[%clk 0:03:01.2]} 6. Qxd4 {[%clk 0:02:57.6]} 6... Ng8
{[%clk 0:02:57.7]} 7. Be3 {[%clk 0:02:53.8]} 7... h6 {[%clk 0:02:45.9]} 8. Nf3
{[%clk 0:02:44.8]} 8... c5 {[%clk 0:02:38.8]} 9. Qd2 {[%clk 0:02:41.9]} 9... Be7
{[%clk 0:02:32.4]} 10. gxh6 {[%clk 0:02:18.7]} 10... Nxh6 {[%clk 0:02:31.7]} 11.
Rg1 {[%clk 0:02:19]} 11... Bf8 {[%clk 0:01:57.7]} 12. O-O-O {[%clk 0:02:18.5]}
12... Qe7 {[%clk 0:01:56.9]} 13. Nd5 {[%clk 0:02:03.3]} 13... Qd8 {[%clk
0:01:54.4]} 14. Bc4 {[%clk 0:01:52.8]} 14... Ne5 {[%clk 0:01:44.8]} 15. Nxe5
{[%clk 0:01:46.9]} 15... dxe5 {[%clk 0:01:45]} 16. Qc3 {[%clk 0:01:32.4]} 16...
Bd6 {[%clk 0:01:24.6]} 17. Bg5 {[%clk 0:01:18.7]} 17... f6 {[%clk 0:01:04.9]}
18. Bxh6 {[%clk 0:00:59.1]} 18... Rxh6 {[%clk 0:01:04.2]} 19. Rxg7 {[%clk
0:00:55.6]} 19... Kf8 {[%clk 0:01:04.1]} 20. Rdg1 {[%clk 0:00:37.2]} 20... Rh8
{[%clk 0:00:57.2]} 21. Ne3 {[%clk 0:00:35.9]} 21... Qb6 {[%clk 0:00:46.7]} 22.
Rg8+ {[%clk 0:00:33.4]} 22... Rxg8 {[%clk 0:00:46.5]} 23. Rxg8+ {[%clk
0:00:33.6]} 23... Ke7 {[%clk 0:00:47.4]} 24. Nd5+ {[%clk 0:00:33.8]} 24... Kd7
{[%clk 0:00:45.5]} 25. Nxb6+ {[%clk 0:00:33.8]} 25... axb6 {[%clk 0:00:46.4]}
26. Qh3+ {[%clk 0:00:27.6]} 26... Kc7 {[%clk 0:00:46]} 27. Qh7+ {[%clk
0:00:25.3]} 27... Kb8 {[%clk 0:00:44.9]} 28. Be6 {[%clk 0:00:22.8]} 28... Ka7
{[%clk 0:00:40.7]} 29. Rxc8 {[%clk 0:00:22.4]} 1-0

[Event "*** Titled Tuesday Blitz"]
[Site "Chess.com"]
[Date "2021.02.09"]
[Round "4"]
[White "Synctel"]
[Black "Pantata007"]
[Result "1-0"]
[WhiteElo "2011"]
[BlackElo "2219"]
[TimeControl "180+1"]
[EndTime "10:38:22 PST"]
[Termination "Synctel won by resignation"]

1. e4 {[%clk 0:03:00.9]} 1... e5 {[%clk 0:02:59.3]} 2. Nf3 {[%clk 0:03:00]} 2...
Nc6 {[%clk 0:02:59.4]} 3. Bc4 {[%clk 0:02:54]} 3... Bc5 {[%clk 0:02:58.8]} 4. b4
{[%clk 0:02:53.5]} 4... Bxb4 {[%clk 0:02:57.6]} 5. c3 {[%clk 0:02:54.1]} 5...
Be7 {[%clk 0:02:57.4]} 6. d4 {[%clk 0:02:55]} 6... Na5 {[%clk 0:02:57.9]} 7. Be2
{[%clk 0:02:54.1]} 7... d6 {[%clk 0:02:57.1]} 8. Qa4+ {[%clk 0:02:22.4]} 8... c6
{[%clk 0:02:56.8]} 9. dxe5 {[%clk 0:02:23]} 9... dxe5 {[%clk 0:02:56.5]} 10.
Nxe5 {[%clk 0:02:20.2]} 10... Nf6 {[%clk 0:02:56.7]} 11. O-O {[%clk 0:02:16.9]}
11... Qc7 {[%clk 0:02:56.8]} 12. Bf4 {[%clk 0:02:14.4]} 12... Bd6 {[%clk
0:02:56.7]} 13. Nd3 {[%clk 0:01:26.3]} 13... Bxf4 {[%clk 0:02:50.5]} 14. Nxf4
{[%clk 0:01:27.2]} 14... Qxf4 {[%clk 0:02:34.4]} 15. Qxa5 {[%clk 0:01:26.2]}
15... Nxe4 {[%clk 0:02:09.2]} 16. Qb4 {[%clk 0:01:13.4]} 16... Bf5 {[%clk
0:00:44.9]} 17. Bd3 {[%clk 0:00:22.1]} 17... Qd6 {[%clk 0:00:32.2]} 18. Bxe4
{[%clk 0:00:20.2]} 18... Qxb4 {[%clk 0:00:31.4]} 19. cxb4 {[%clk 0:00:20.8]}
19... Bxe4 {[%clk 0:00:31.3]} 20. Re1 {[%clk 0:00:21.4]} 20... f5 {[%clk
0:00:31.3]} 21. f3 {[%clk 0:00:21.6]} 21... Kf7 {[%clk 0:00:31.1]} 22. fxe4
{[%clk 0:00:22.1]} 22... Rhe8 {[%clk 0:00:31.2]} 23. Nc3 {[%clk 0:00:21.3]}
23... fxe4 {[%clk 0:00:30.8]} 24. Rxe4 {[%clk 0:00:21.6]} 24... Rxe4 {[%clk
0:00:30.5]} 25. Nxe4 {[%clk 0:00:22.5]} 25... Re8 {[%clk 0:00:30.9]} 26. Nd6+
{[%clk 0:00:22.7]} 1-0

[Event "*** Titled Tuesday Blitz"]
[Site "Chess.com"]
[Date "2021.02.09"]
[Round "4"]
[White "MITerryble"]
[Black "JoachimMouhamad"]
[Result "1-0"]
[WhiteElo "2950"]
[BlackElo "2394"]
[TimeControl "180+1"]
[EndTime "10:38:23 PST"]
[Termination "MITerryble won by resignation"]

1. e4 {[%clk 0:03:00.9]} 1... e5 {[%clk 0:02:59.3]} 2. Nf3 {[%clk 0:03:00.7]}
2... Nc6 {[%clk 0:02:59]} 3. c3 {[%clk 0:03:00.5]} 3... Nf6 {[%clk 0:02:57.3]}
4. d4 {[%clk 0:03:00.4]} 4... Bd6 {[%clk 0:02:41.9]} 5. Bd3 {[%clk 0:02:51.8]}
5... O-O {[%clk 0:02:40]} 6. O-O {[%clk 0:02:50.9]} 6... Re8 {[%clk 0:02:37.3]}
7. Re1 {[%clk 0:02:45.8]} 7... Bf8 {[%clk 0:02:33.7]} 8. Nxe5 {[%clk 0:02:29.9]}
8... Nxe5 {[%clk 0:02:33.3]} 9. dxe5 {[%clk 0:02:30.8]} 9... Rxe5 {[%clk
0:02:34]} 10. f4 {[%clk 0:02:30.9]} 10... Re8 {[%clk 0:02:32.6]} 11. e5 {[%clk
0:02:30.8]} 11... Bc5+ {[%clk 0:02:26.6]} 12. Kh1 {[%clk 0:02:11.4]} 12... Nd5
{[%clk 0:02:26.3]} 13. Bxh7+ {[%clk 0:02:06.3]} 13... Kxh7 {[%clk 0:02:26.4]}
14. Qxd5 {[%clk 0:02:07.2]} 14... Qe7 {[%clk 0:02:20]} 15. Nd2 {[%clk
0:01:50.3]} 15... c6 {[%clk 0:02:17.7]} 16. Qd3+ {[%clk 0:01:45.6]} 16... Kg8
{[%clk 0:02:17.5]} 17. Ne4 {[%clk 0:01:43.2]} 17... d5 {[%clk 0:02:08.1]} 18.
exd6 {[%clk 0:01:38.6]} 18... Bxd6 {[%clk 0:02:07.1]} 19. Nf6+ {[%clk
0:01:34.5]} 19... gxf6 {[%clk 0:02:04.4]} 20. Rxe7 {[%clk 0:01:33.4]} 20... Bxe7
{[%clk 0:02:05.3]} 21. f5 {[%clk 0:01:20.2]} 21... Bf8 {[%clk 0:01:59.6]} 22.
Qg3+ {[%clk 0:01:18.6]} 22... Kh8 {[%clk 0:01:56.6]} 23. Qh3+ {[%clk 0:01:15.7]}
23... Kg8 {[%clk 0:01:55.2]} 24. Bf4 {[%clk 0:01:13.9]} 24... Re4 {[%clk
0:01:46.9]} 25. Rf1 {[%clk 0:01:07.4]} 25... Bd7 {[%clk 0:01:46.6]} 26. Qg3+
{[%clk 0:01:02]} 26... Kh8 {[%clk 0:01:39.1]} 27. Qh4+ {[%clk 0:01:01.8]} 27...
Kg8 {[%clk 0:01:36.8]} 28. Qxf6 {[%clk 0:00:56.2]} 28... Rae8 {[%clk 0:01:26.3]}
29. Qg5+ {[%clk 0:00:55.9]} 29... Kh7 {[%clk 0:01:21.6]} 30. h3 {[%clk
0:00:49.9]} 30... c5 {[%clk 0:00:54.9]} 31. Rf3 {[%clk 0:00:44.6]} 31... Bc6
{[%clk 0:00:52.1]} 32. Qh5+ {[%clk 0:00:40.6]} 32... Kg8 {[%clk 0:00:48.9]} 33.
Rg3+ {[%clk 0:00:37.1]} 33... Bg7 {[%clk 0:00:48.9]} 34. f6 {[%clk 0:00:30.9]}
1-0

[Event "*** Titled Tuesday Blitz"]
[Site "Chess.com"]
[Date "2021.02.09"]
[Round "4"]
[White "ridnani2021"]
[Black "politeplayer"]
[Result "1-0"]
[WhiteElo "2358"]
[BlackElo "2183"]
[TimeControl "180+1"]
[EndTime "10:38:28 PST"]
[Termination "ridnani2021 won by resignation"]

1. e4 {[%clk 0:03:00.9]} 1... e6 {[%clk 0:02:59.2]} 2. d4 {[%clk 0:03:00.5]}
2... d5 {[%clk 0:02:59]} 3. Nd2 {[%clk 0:03:00.2]} 3... dxe4 {[%clk 0:02:59.5]}
4. Nxe4 {[%clk 0:02:59.9]} 4... Nd7 {[%clk 0:03:00.1]} 5. Nf3 {[%clk 0:02:59.6]}
5... Ngf6 {[%clk 0:03:00.2]} 6. Nxf6+ {[%clk 0:02:58.5]} 6... Nxf6 {[%clk
0:02:59.3]} 7. c3 {[%clk 0:02:58.7]} 7... Bd6 {[%clk 0:02:54.6]} 8. g3 {[%clk
0:02:56.7]} 8... b6 {[%clk 0:02:53.5]} 9. Bg2 {[%clk 0:02:56.2]} 9... Rb8 {[%clk
0:02:53.9]} 10. O-O {[%clk 0:02:56.1]} 10... Bb7 {[%clk 0:02:53.9]} 11. Qa4+
{[%clk 0:02:46.1]} 11... Qd7 {[%clk 0:02:45.2]} 12. Qxa7 {[%clk 0:02:38.9]}
12... O-O {[%clk 0:02:40.8]} 13. b4 {[%clk 0:02:25.9]} 13... Nd5 {[%clk
0:02:28.9]} 14. Qa3 {[%clk 0:02:19.7]} 14... Ra8 {[%clk 0:02:21.1]} 15. Qb3
{[%clk 0:02:16.3]} 15... b5 {[%clk 0:02:16.8]} 16. Nd2 {[%clk 0:02:08.3]} 16...
Ra7 {[%clk 0:02:03.8]} 17. a3 {[%clk 0:02:01.3]} 17... Nb6 {[%clk 0:02:00.2]}
18. Bxb7 {[%clk 0:01:59.5]} 18... Rxb7 {[%clk 0:02:00.4]} 19. c4 {[%clk
0:01:57.1]} 19... bxc4 {[%clk 0:01:40.3]} 20. Nxc4 {[%clk 0:01:54.8]} 20... Be7
{[%clk 0:01:28.6]} 21. Nxb6 {[%clk 0:01:53.5]} 21... cxb6 {[%clk 0:01:20.5]} 22.
Be3 {[%clk 0:01:52]} 22... Rc8 {[%clk 0:01:17.4]} 23. Rfd1 {[%clk 0:01:43.7]}
23... h5 {[%clk 0:01:17]} 24. Ra2 {[%clk 0:01:37.5]} 24... h4 {[%clk 0:01:16.4]}
25. d5 {[%clk 0:01:35.9]} 25... exd5 {[%clk 0:01:09.4]} 26. Qxd5 {[%clk
0:01:33.5]} 26... Qxd5 {[%clk 0:00:29.8]} 27. Rxd5 {[%clk 0:01:34.4]} 27... hxg3
{[%clk 0:00:20.1]} 28. hxg3 {[%clk 0:01:34]} 28... f6 {[%clk 0:00:17.4]} 29.
Rad2 {[%clk 0:01:32.5]} 29... Kf7 {[%clk 0:00:17.1]} 30. Rb5 {[%clk 0:01:31.8]}
30... Rc3 {[%clk 0:00:15.6]} 31. a4 {[%clk 0:01:29]} 31... Rcc7 {[%clk
0:00:09.1]} 32. Ra2 {[%clk 0:01:23.3]} 32... Rc6 {[%clk 0:00:07.1]} 33. a5
{[%clk 0:01:23.3]} 33... Ra7 {[%clk 0:00:07.2]} 34. Rxb6 {[%clk 0:01:21.9]}
34... Rxb6 {[%clk 0:00:06.5]} 35. Bxb6 {[%clk 0:01:22.8]} 35... Rb7 {[%clk
0:00:06.7]} 36. a6 {[%clk 0:01:21]} 36... Rb8 {[%clk 0:00:05.6]} 37. a7 {[%clk
0:01:21.2]} 37... Ra8 {[%clk 0:00:05.7]} 38. b5 {[%clk 0:01:20.8]} 38... Ke6
{[%clk 0:00:05.7]} 39. Be3 {[%clk 0:01:20.7]} 39... Bd6 {[%clk 0:00:05.3]} 40.
b6 {[%clk 0:01:20.1]} 1-0

[Event "*** Titled Tuesday Blitz"]
[Site "Chess.com"]
[Date "2021.02.09"]
[Round "4"]
[White "zimmm36"]
[Black "TokChess"]
[Result "1-0"]
[WhiteElo "2221"]
[BlackElo "2391"]
[TimeControl "180+1"]
[EndTime "10:38:29 PST"]
[Termination "zimmm36 won by resignation"]

1. d4 {[%clk 0:03:00.9]} 1... e6 {[%clk 0:02:54.6]} 2. c4 {[%clk 0:02:50.1]}
2... Nf6 {[%clk 0:02:50.6]} 3. Nc3 {[%clk 0:02:49.3]} 3... Bb4 {[%clk
0:02:44.1]} 4. e3 {[%clk 0:02:49.2]} 4... O-O {[%clk 0:02:44.1]} 5. Ne2 {[%clk
0:02:48.5]} 5... c5 {[%clk 0:02:43.9]} 6. a3 {[%clk 0:02:48.1]} 6... Bxc3+
{[%clk 0:02:42.4]} 7. Nxc3 {[%clk 0:02:49]} 7... d6 {[%clk 0:02:42]} 8. g3
{[%clk 0:02:45.6]} 8... Nc6 {[%clk 0:02:41.8]} 9. Bg2 {[%clk 0:02:45.1]} 9...
Qb6 {[%clk 0:02:25.8]} 10. d5 {[%clk 0:02:38.8]} 10... exd5 {[%clk 0:02:25.3]}
11. Nxd5 {[%clk 0:02:34.6]} 11... Nxd5 {[%clk 0:02:25.3]} 12. cxd5 {[%clk
0:02:33.1]} 12... Ne5 {[%clk 0:02:23.1]} 13. O-O {[%clk 0:02:32.4]} 13... Re8
{[%clk 0:01:58.7]} 14. b4 {[%clk 0:01:50.9]} 14... cxb4 {[%clk 0:01:51.1]} 15.
Rb1 {[%clk 0:01:49.8]} 15... a5 {[%clk 0:01:46.7]} 16. axb4 {[%clk 0:01:49.8]}
16... axb4 {[%clk 0:01:45.1]} 17. Bd2 {[%clk 0:01:50.3]} 17... Ra2 {[%clk
0:01:32.5]} 18. Bxb4 {[%clk 0:01:44.5]} 18... Bf5 {[%clk 0:01:28.1]} 19. e4
{[%clk 0:01:38.7]} 19... Bg4 {[%clk 0:01:27.2]} 20. Qb3 {[%clk 0:01:37.4]} 20...
Rea8 {[%clk 0:01:08.9]} 21. Bc3 {[%clk 0:01:14.4]} 21... Qc5 {[%clk 0:00:51.3]}
22. Bxe5 {[%clk 0:01:10.8]} 22... dxe5 {[%clk 0:00:52.2]} 23. Rbc1 {[%clk
0:01:02.4]} 23... Qd4 {[%clk 0:00:46.8]} 24. h3 {[%clk 0:00:57.2]} 24... Bd7
{[%clk 0:00:42.5]} 25. Rc7 {[%clk 0:00:50.4]} 25... Be8 {[%clk 0:00:36.4]} 26.
Rxb7 {[%clk 0:00:39.8]} 26... h5 {[%clk 0:00:34.2]} 27. Rb8 {[%clk 0:00:38]}
27... R2a3 {[%clk 0:00:20.6]} 28. Rxe8+ {[%clk 0:00:36.5]} 28... Rxe8 {[%clk
0:00:18.5]} 29. Qxa3 {[%clk 0:00:36.5]} 1-0

[Event "*** Titled Tuesday Blitz"]
[Site "Chess.com"]
[Date "2021.02.09"]
[Round "4"]
[White "vugarrasulov"]
[Black "kuban1991"]
[Result "1/2-1/2"]
[WhiteElo "2755"]
[BlackElo "2896"]
[TimeControl "180+1"]
[EndTime "10:38:33 PST"]
[Termination "Game drawn by agreement"]

1. d4 {[%clk 0:03:00.9]} 1... g6 {[%clk 0:03:00]} 2. Nf3 {[%clk 0:03:00.9]} 2...
Bg7 {[%clk 0:03:00.5]} 3. Bf4 {[%clk 0:03:01.1]} 3... Nf6 {[%clk 0:03:00.1]} 4.
e3 {[%clk 0:03:00.3]} 4... O-O {[%clk 0:02:59.7]} 5. h3 {[%clk 0:03:00.1]} 5...
d5 {[%clk 0:02:58.5]} 6. Nbd2 {[%clk 0:02:59.6]} 6... b6 {[%clk 0:02:55.8]} 7.
Ne5 {[%clk 0:02:53]} 7... Bb7 {[%clk 0:02:55.4]} 8. Bd3 {[%clk 0:02:51.8]} 8...
Nbd7 {[%clk 0:02:55.6]} 9. O-O {[%clk 0:02:51.8]} 9... c5 {[%clk 0:02:54.9]} 10.
c3 {[%clk 0:02:51.5]} 10... e6 {[%clk 0:02:54.1]} 11. a4 {[%clk 0:02:50.4]}
11... a6 {[%clk 0:02:52.2]} 12. Qe2 {[%clk 0:02:46.5]} 12... Nxe5 {[%clk
0:02:38.6]} 13. Bxe5 {[%clk 0:02:46]} 13... Nd7 {[%clk 0:02:38.3]} 14. Bxg7
{[%clk 0:02:41.5]} 14... Kxg7 {[%clk 0:02:39.2]} 15. b4 {[%clk 0:02:38.3]} 15...
e5 {[%clk 0:02:28.2]} 16. bxc5 {[%clk 0:02:30.6]} 16... bxc5 {[%clk 0:02:27.6]}
17. Rfb1 {[%clk 0:02:25.4]} 17... Qc7 {[%clk 0:02:27.7]} 18. dxe5 {[%clk
0:02:20.6]} 18... Nxe5 {[%clk 0:02:27.2]} 19. Nf3 {[%clk 0:02:19.7]} 19... Rfb8
{[%clk 0:02:17.3]} 20. a5 {[%clk 0:02:14.9]} 20... Nxf3+ {[%clk 0:02:16.8]} 21.
Qxf3 {[%clk 0:02:14.8]} 21... d4 {[%clk 0:02:10.5]} 22. Rxb7 {[%clk 0:02:10.7]}
22... Rxb7 {[%clk 0:02:07.5]} 23. Be4 {[%clk 0:02:09.8]} 23... Rab8 {[%clk
0:02:06.1]} 24. Bxb7 {[%clk 0:02:09.8]} 24... Qxb7 {[%clk 0:02:03.7]} 25. Qxb7
{[%clk 0:02:02.5]} 25... Rxb7 {[%clk 0:02:04.6]} 26. cxd4 {[%clk 0:02:03]} 26...
cxd4 {[%clk 0:02:04.8]} 27. exd4 {[%clk 0:02:03.6]} 27... Rb5 {[%clk 0:01:58.6]}
28. f3 {[%clk 0:01:55.2]} 28... Kf6 {[%clk 0:01:58.4]} 29. Kf2 {[%clk
0:01:55.4]} 29... Ke6 {[%clk 0:01:58.1]} 30. Re1+ {[%clk 0:01:42.5]} 30... Kd6
{[%clk 0:01:56.2]} 31. Re8 {[%clk 0:01:41.3]} 31... Rxa5 {[%clk 0:01:54.5]} 32.
Ke3 {[%clk 0:01:41]} 32... h5 {[%clk 0:01:51.3]} 33. g4 {[%clk 0:01:40]} 33...
hxg4 {[%clk 0:01:50.5]} 34. hxg4 {[%clk 0:01:40.9]} 34... Ra1 {[%clk 0:01:46.3]}
35. Rd8+ {[%clk 0:01:40.7]} 35... Ke7 {[%clk 0:01:45.1]} 36. Ra8 {[%clk
0:01:40.6]} 36... a5 {[%clk 0:01:45.1]} 37. Ra7+ {[%clk 0:01:39.6]} 37... Ke6
{[%clk 0:01:44.9]} 38. Ra6+ {[%clk 0:01:39.5]} 38... Ke7 {[%clk 0:01:43]} 39. d5
{[%clk 0:01:37.1]} 39... a4 {[%clk 0:01:40.5]} 40. Kf4 {[%clk 0:01:30.3]} 40...
a3 {[%clk 0:01:15.7]} 41. Ra7+ {[%clk 0:01:27.4]} 41... Kf6 {[%clk 0:01:09]} 42.
Ra6+ {[%clk 0:01:27]} 42... Ke7 {[%clk 0:01:09.1]} 43. Ra7+ {[%clk 0:01:23.3]}
43... Kf6 {[%clk 0:01:09]} 44. g5+ {[%clk 0:01:19.8]} 44... Kg7 {[%clk
0:01:08.4]} 45. Ke5 {[%clk 0:01:08.8]} 45... a2 {[%clk 0:01:03.6]} 46. Kd6
{[%clk 0:01:09.2]} 46... Kf8 {[%clk 0:01:01.9]} 47. f4 {[%clk 0:01:08.2]} 47...
Kg7 {[%clk 0:01:01]} 48. Ra8 {[%clk 0:01:07.8]} 48... Kh7 {[%clk 0:00:59.8]} 49.
Kd7 {[%clk 0:01:00.4]} 49... Rd1 {[%clk 0:00:58.5]} 50. Rxa2 {[%clk 0:01:00.8]}
50... Rxd5+ {[%clk 0:00:58.9]} 51. Ke7 {[%clk 0:00:59.4]} 1/2-1/2

[Event "*** Titled Tuesday Blitz"]
[Site "Chess.com"]
[Date "2021.02.09"]
[Round "4"]
[White "ybruned"]
[Black "vladgoncharov"]
[Result "0-1"]
[WhiteElo "2290"]
[BlackElo "2488"]
[TimeControl "180+1"]
[EndTime "10:38:33 PST"]
[Termination "vladgoncharov won on time"]

1. b3 {[%clk 0:03:00.9]} 1... a5 {[%clk 0:02:58.7]} 2. a4 {[%clk 0:03:00.3]}
2... d5 {[%clk 0:02:53.9]} 3. Bb2 {[%clk 0:03:00.6]} 3... Nc6 {[%clk 0:02:54.2]}
4. e3 {[%clk 0:02:59.2]} 4... e6 {[%clk 0:02:47]} 5. Nf3 {[%clk 0:02:56.6]} 5...
Nf6 {[%clk 0:02:46.6]} 6. Bb5 {[%clk 0:02:57]} 6... Bd7 {[%clk 0:02:46.4]} 7.
O-O {[%clk 0:02:52.1]} 7... Bd6 {[%clk 0:02:45.7]} 8. Bxc6 {[%clk 0:02:48.2]}
8... Bxc6 {[%clk 0:02:45.4]} 9. Ne5 {[%clk 0:02:47.9]} 9... O-O {[%clk
0:02:44.5]} 10. d3 {[%clk 0:02:46.7]} 10... Be8 {[%clk 0:02:44]} 11. f4 {[%clk
0:02:42.6]} 11... c5 {[%clk 0:02:37.4]} 12. Nd2 {[%clk 0:02:36.7]} 12... b5
{[%clk 0:02:36.6]} 13. axb5 {[%clk 0:02:24.4]} 13... Bxb5 {[%clk 0:02:37.5]} 14.
Ng4 {[%clk 0:02:05.2]} 14... Be7 {[%clk 0:02:30.5]} 15. Nxf6+ {[%clk 0:01:41]}
15... Bxf6 {[%clk 0:02:30]} 16. Bxf6 {[%clk 0:01:41.6]} 16... Qxf6 {[%clk
0:02:30.2]} 17. c4 {[%clk 0:01:42.2]} 17... Bd7 {[%clk 0:02:06.8]} 18. Qc2
{[%clk 0:01:39.5]} 18... Rfc8 {[%clk 0:02:01.2]} 19. Nf3 {[%clk 0:01:36.5]}
19... Be8 {[%clk 0:01:55.9]} 20. Ra2 {[%clk 0:01:30.2]} 20... Rcb8 {[%clk
0:01:48]} 21. Rfa1 {[%clk 0:01:24.4]} 21... dxc4 {[%clk 0:01:26.2]} 22. dxc4
{[%clk 0:01:20.9]} 22... Rb4 {[%clk 0:01:24.1]} 23. Ne5 {[%clk 0:01:10.3]} 23...
Qd8 {[%clk 0:01:23.9]} 24. Nd3 {[%clk 0:00:50]} 24... Rbb8 {[%clk 0:01:22.3]}
25. Qc3 {[%clk 0:00:30.7]} 25... Qb6 {[%clk 0:01:14.5]} 26. Rxa5 {[%clk
0:00:19.6]} 26... Rxa5 {[%clk 0:01:13.6]} 27. Rxa5 {[%clk 0:00:20.2]} 27... Qxb3
{[%clk 0:01:14]} 28. Qxb3 {[%clk 0:00:20.1]} 28... Rxb3 {[%clk 0:01:14.9]} 29.
Ra8 {[%clk 0:00:13.6]} 29... Kf8 {[%clk 0:01:14.2]} 30. Nxc5 {[%clk 0:00:14]}
30... Rxe3 {[%clk 0:01:13.4]} 31. Nd7+ {[%clk 0:00:07.7]} 31... Ke7 {[%clk
0:01:11.7]} 32. Ne5 {[%clk 0:00:07.6]} 32... g5 {[%clk 0:01:05]} 33. Ra7+ {[%clk
0:00:03.9]} 33... Kf8 {[%clk 0:01:04.3]} 0-1

[Event "*** Titled Tuesday Blitz"]
[Site "Chess.com"]
[Date "2021.02.09"]
[Round "4"]
[White "Witik"]
[Black "sokidze"]
[Result "1-0"]
[WhiteElo "2718"]
[BlackElo "2508"]
[TimeControl "180+1"]
[EndTime "10:38:35 PST"]
[Termination "Witik won by resignation"]

1. d4 {[%clk 0:03:00.9]} 1... Nf6 {[%clk 0:02:59.6]} 2. Bf4 {[%clk 0:03:00.4]}
2... e6 {[%clk 0:03:00]} 3. e3 {[%clk 0:03:00]} 3... d5 {[%clk 0:03:00.3]} 4.
Nd2 {[%clk 0:02:59.5]} 4... Bd6 {[%clk 0:03:00.5]} 5. c3 {[%clk 0:02:58.9]} 5...
O-O {[%clk 0:03:00.3]} 6. Bd3 {[%clk 0:02:58.4]} 6... c5 {[%clk 0:03:00.3]} 7.
Bxd6 {[%clk 0:02:57.9]} 7... Qxd6 {[%clk 0:03:00.3]} 8. f4 {[%clk 0:02:56.6]}
8... b6 {[%clk 0:02:57.2]} 9. Ngf3 {[%clk 0:02:51.8]} 9... Ba6 {[%clk 0:02:56]}
10. Bxa6 {[%clk 0:02:51.7]} 10... Nxa6 {[%clk 0:02:56.9]} 11. Ne5 {[%clk
0:02:49.9]} 11... Nb8 {[%clk 0:02:50.7]} 12. O-O {[%clk 0:02:49.2]} 12... Nc6
{[%clk 0:02:49.7]} 13. Qf3 {[%clk 0:02:46.9]} 13... Nd7 {[%clk 0:02:38.2]} 14.
Rad1 {[%clk 0:02:32.1]} 14... Ncxe5 {[%clk 0:02:16.3]} 15. dxe5 {[%clk
0:02:26.8]} 15... Qc6 {[%clk 0:01:56.8]} 16. e4 {[%clk 0:02:26.1]} 16... f6
{[%clk 0:01:26.5]} 17. exd5 {[%clk 0:02:22]} 17... exd5 {[%clk 0:01:26.5]} 18.
Nc4 {[%clk 0:02:10.5]} 18... b5 {[%clk 0:00:45.6]} 19. Na5 {[%clk 0:01:57.8]}
19... Qe6 {[%clk 0:00:38.9]} 20. Qxd5 {[%clk 0:01:42.6]} 20... Qxd5 {[%clk
0:00:38.6]} 21. Rxd5 {[%clk 0:01:43.5]} 21... Nb6 {[%clk 0:00:38.7]} 22. Rxc5
{[%clk 0:01:43.3]} 22... fxe5 {[%clk 0:00:37.4]} 23. fxe5 {[%clk 0:01:40.9]}
23... Rfd8 {[%clk 0:00:32.8]} 24. Nc6 {[%clk 0:01:30.8]} 24... Rd2 {[%clk
0:00:31.1]} 25. Rxb5 {[%clk 0:01:28.8]} 25... h6 {[%clk 0:00:27.3]} 26. e6
{[%clk 0:01:26.2]} 26... Re8 {[%clk 0:00:23.1]} 27. e7 {[%clk 0:01:25.4]} 27...
Rd6 {[%clk 0:00:18.2]} 28. Rbf5 {[%clk 0:01:22.2]} 28... Nd7 {[%clk 0:00:18.2]}
29. Nxa7 {[%clk 0:01:18.8]} 29... Ra6 {[%clk 0:00:12.1]} 30. Nb5 {[%clk
0:01:16.3]} 30... Rxe7 {[%clk 0:00:12.4]} 31. a3 {[%clk 0:01:11.5]} 31... Nf6
{[%clk 0:00:11.4]} 32. c4 {[%clk 0:01:08.2]} 32... Rc6 {[%clk 0:00:09.8]} 33. b3
{[%clk 0:01:06.5]} 33... Re3 {[%clk 0:00:09.6]} 34. R5f3 {[%clk 0:01:04.6]}
34... Re2 {[%clk 0:00:08.4]} 35. Nd4 {[%clk 0:00:58.5]} 1-0